bitfinex/quotes_BTCUSD_20241021
["timestamp","ask_amount","ask_price","bid_price","bid_amount"]
[1729550581957,0.389547,67683.0,67682.0,0.000835]
[1729550582178,0.391547,67683.0,67682.0,0.000835]
[1729550583818,0.379547,67683.0,67682.0,0.000835]
[1729550584065,0.391547,67683.0,67682.0,0.000835]
[1729550584498,0.366547,67683.0,67682.0,0.000835]
[1729550584705,0.367547,67683.0,67682.0,0.000835]
[1729550585150,0.381547,67683.0,67682.0,0.000835]
[1729550585598,0.367547,67683.0,67682.0,0.000835]
[1729550585834,0.372547,67683.0,67682.0,0.000835]
[1729550586718,0.370547,67683.0,67682.0,0.000835]
[1729550588331,0.372547,67683.0,67682.0,0.000835]
[1729550588555,0.48368878,67683.0,67682.0,0.000835]
[1729550588812,0.2128,67683.0,67682.0,0.000835]
[1729550589024,0.016,67683.0,67682.0,0.000835]
[1729550589249,0.011,67683.0,67682.0,0.00557895]
[1729550589472,0.006,67683.0,67682.0,0.00556647]
[1729550589697,0.005,67685.0,67682.0,0.00556647]
[1729550590178,0.003,67683.0,67682.0,0.00556647]
[1729550590403,0.003,67683.0,67676.0,0.22124383]
[1729550590404,0.003,67683.0,67676.0,0.0023103]
[1729550590626,0.005,67685.0,67676.0,0.0023103]
[1729550590627,0.005,67685.0,67682.0,0.00454949]
[1729550590864,0.005,67685.0,67683.0,0.00454949]
[1729550591111,0.006,67685.0,67682.0,0.004]
[1729550591336,0.003,67683.0,67682.0,0.004]
[1729550591999,0.006,67685.0,67682.0,0.004]
[1729550592474,0.007,67685.0,67682.0,0.005]
[1729550592728,0.005,67685.0,67677.0,0.14895915]
[1729550592935,0.006,67685.0,67683.0,0.004]
[1729550593612,0.005,67685.0,67682.0,0.001]
[1729550593827,0.001,67685.0,67682.0,0.005]
[1729550594053,0.006,67685.0,67682.0,0.005]
[1729550594289,0.005,67685.0,67682.0,0.001]
[1729550594496,0.005,67685.0,67677.0,0.14895915]
[1729550594712,0.007,67685.0,67683.0,0.004]
[1729550595610,0.006,67685.0,67683.0,0.004]
[1729550595825,0.006,67685.0,67683.0,0.001]
[1729550596679,0.007,67685.0,67683.0,0.001]
[1729550597865,0.006,67685.0,67683.0,0.001]
[1729550599031,0.007,67685.0,67683.0,0.005]
[1729550600975,0.0636465,67685.0,67683.0,0.005]
[1729550601418,0.0866465,67685.0,67684.0,0.00454949]
[1729550601863,0.0866465,67685.0,67683.0,0.005]
[1729550602313,0.0856465,67685.0,67683.0,0.001]
[1729550602782,0.0856465,67685.0,67684.0,0.004]
[1729550603004,0.0856465,67685.0,67677.0,0.14978615]
[1729550603005,0.0846465,67685.0,67677.0,0.14978615]
[1729550603520,0.05315115,67684.0,67683.0,0.004]
[1729550603738,0.029,67685.0,67678.0,0.00354949]
[1729550603963,0.028,67685.0,67679.0,0.14895915]
[1729550604191,0.029,67685.0,67679.0,0.15347018]
[1729550604628,0.03,67685.0,67684.0,0.001]
[1729550604864,0.029,67685.0,67679.0,0.15347018]
[1729550605091,0.029,67685.0,67679.0,0.14895915]
[1729550605306,0.03,67685.0,67680.0,0.0045005]
[1729550605525,0.028,67685.0,67680.0,0.0045005]
[1729550605739,0.028,67685.0,67684.0,0.001]
[1729550605965,0.03,67685.0,67684.0,0.001]
[1729550606182,0.03,67685.0,67679.0,0.14895915]
[1729550606183,0.029,67685.0,67679.0,0.14895915]
[1729550606431,0.029,67685.0,67679.0,0.14995915]
[1729550606647,0.029,67685.0,67680.0,0.0055005]
[1729550606836,0.03,67685.0,67680.0,0.0055005]
[1729550607358,0.029,67685.0,67680.0,0.0045005]
[1729550607583,0.03,67685.0,67680.0,0.0045005]
[1729550608017,0.03,67685.0,67683.0,0.03]
[1729550608221,0.029,67685.0,67683.0,0.025]
[1729550608343,0.03,67685.0,67684.0,0.001]
[1729550608562,0.029,67685.0,67684.0,0.0055005]
[1729550608777,0.029,67685.0,67684.0,0.0045005]
[1729550609018,0.031,67685.0,67684.0,0.0045005]
[1729550609231,0.029,67685.0,67684.0,0.0045005]
[1729550609444,0.028,67685.0,67684.0,0.0045005]
[1729550609663,0.030654,67685.0,67684.0,0.0055005]
[1729550609886,0.031654,67685.0,67684.0,0.0065005]
[1729550615617,0.031654,67685.0,67684.0,0.002]
[1729550621581,0.031654,67685.0,67684.0,0.00650519]
[1729550621780,0.031654,67685.0,67684.0,0.002]
[1729550622236,0.031654,67685.0,67684.0,0.00650519]
[1729550622452,0.031654,67685.0,67684.0,0.002]
[1729550628182,0.031654,67685.0,67684.0,0.00650595]
[1729550628401,0.031654,67685.0,67684.0,0.002]
[1729550628686,0.031654,67685.0,67684.0,0.00650595]
[1729550629827,0.031654,67685.0,67684.0,0.002]
[1729550631628,0.031654,67685.0,67684.0,0.00650595]
[1729550631842,0.031654,67685.0,67684.0,0.002]
[1729550632307,0.031654,67685.0,67684.0,0.00650595]
[1729550632544,0.031654,67685.0,67684.0,0.002]
[1729550632772,0.031654,67685.0,67684.0,0.00650595]
[1729550632993,0.031654,67685.0,67684.0,0.002]
[1729550633203,0.031654,67685.0,67684.0,0.00650595]
[1729550634504,0.07565432,67685.0,67684.0,0.00650595]
[1729550636072,0.003654,67685.0,67684.0,0.15425095]
[1729550636724,0.003654,67685.0,67684.0,0.4238765]
[1729550636936,0.001654,67687.0,67684.0,0.4238765]
[1729550636937,0.001654,67687.0,67686.0,0.3684074]
[1729550637173,0.001654,67687.0,67686.0,0.68756655]
[1729550637439,0.001654,67687.0,67686.0,0.69208261]
[1729550637666,0.001654,67687.0,67686.0,0.69147549]
[1729550637879,0.001654,67687.0,67686.0,0.68365395]
[1729550638094,0.001654,67687.0,67686.0,0.67717369]
[1729550638314,0.001654,67687.0,67686.0,0.51183409]
[1729550638535,0.001654,67687.0,67686.0,0.42436075]
[1729550638983,0.002654,67687.0,67686.0,0.42536075]
[1729550639442,0.003654,67687.0,67686.0,0.43236075]
[1729550640100,0.003654,67687.0,67686.0,0.31669435]
[1729550640549,0.003654,67687.0,67686.0,0.41669435]
[1729550640762,0.001654,67687.0,67686.0,0.40869435]
[1729550640993,0.002654,67687.0,67686.0,0.42269435]
[1729550641221,0.003654,67687.0,67686.0,0.43069435]
[1729550641749,0.2950584,67687.0,67686.0,0.02651606]
[1729550641965,0.106354,67687.0,67686.0,0.02651606]
[1729550642184,0.106354,67687.0,67686.0,0.022]
[1729550642408,0.082354,67687.0,67686.0,0.014]
[1729550642858,0.082354,67687.0,67686.0,0.026101]
[1729550642859,0.083354,67687.0,67686.0,0.026101]
[1729550643998,0.082354,67687.0,67686.0,0.018101]
[1729550644225,0.081354,67687.0,67686.0,0.151842]
[1729550644434,0.002654,67687.0,67686.0,0.159842]
[1729550644640,0.003654,67687.0,67686.0,0.021101]
[1729550645080,0.003654,67687.0,67686.0,0.013101]
[1729550645081,0.002654,67687.0,67686.0,0.013101]
[1729550645528,0.002654,67687.0,67686.0,0.012101]
[1729550645752,0.003654,67687.0,67686.0,0.021101]
[1729550646653,0.003654,67687.0,67686.0,0.168842]
[1729550656151,0.003654,67687.0,67686.0,0.31780115]
[1729550657021,0.002654,67687.0,67686.0,0.30880115]
[1729550657839,0.003654,67687.0,67686.0,0.31580115]
[1729550658290,0.002654,67687.0,67686.0,0.30880115]
[1729550658676,0.003654,67687.0,67686.0,0.31580115]
[1729550662929,0.003654,67687.0,67686.0,0.41580115]
[1729550666185,0.003654,67687.0,67686.0,0.41662815]
[1729550667646,0.003654,67687.0,67686.0,0.46502815]
[1729550667876,0.098,67701.0,67686.0,0.46502815]
[1729550667877,0.098,67701.0,67700.0,0.14771]
[1729550668080,0.0753,67704.0,67703.0,0.147703]
[1729550668439,0.0753,67704.0,67703.0,0.41631483]
[1729550670221,0.0753,67704.0,67703.0,0.42731483]
[1729550670431,0.0753,67704.0,67703.0,0.31175003]
[1729550670641,0.0753,67704.0,67703.0,0.32175003]
[1729550670810,0.0753,67704.0,67703.0,0.31175003]
[1729550671248,0.0753,67704.0,67703.0,0.65202378]
[1729550671464,3.31009051,67720.0,67718.0,0.147671]
[1729550671665,3.2417294,67720.0,67719.0,0.147669]
[1729550671863,3.1805094,67720.0,67719.0,0.29662815]
[1729550672059,3.1805094,67720.0,67719.0,0.30064976]
[1729550672377,3.1805094,67720.0,67719.0,0.33252413]
[1729550674047,3.1805094,67720.0,67719.0,0.34652413]
[1729550674211,3.1805094,67720.0,67719.0,0.36052413]
[1729550674995,3.1805094,67720.0,67719.0,0.32864976]
[1729550676412,3.1805094,67720.0,67719.0,0.54989359]
[1729550676626,3.1805094,67720.0,67719.0,0.41464976]
[1729550676938,3.1805094,67720.0,67719.0,0.40064976]
[1729550677143,3.1805094,67720.0,67719.0,0.41464976]
[1729550677697,3.1805094,67720.0,67719.0,0.42864976]
[1729550677902,3.1805094,67720.0,67719.0,0.41464976]
[1729550678110,3.1805094,67720.0,67719.0,0.40064976]
[1729550678320,3.1805094,67720.0,67719.0,0.59637192]
[1729550678560,3.1805094,67720.0,67719.0,0.42864976]
[1729550678789,3.1805094,67720.0,67719.0,0.59637192]
[1729550679656,3.1805094,67720.0,67719.0,0.58237192]
[1729550679863,3.1805094,67720.0,67719.0,0.59637192]
[1729550680145,3.1805094,67720.0,67719.0,0.58237192]
[1729550680805,3.1805094,67720.0,67719.0,0.59637192]
[1729550681217,3.1805094,67720.0,67719.0,0.58237192]
[1729550681680,3.1805094,67720.0,67719.0,0.59637192]
[1729550681913,3.15242035,67720.0,67719.0,1.29637192]
[1729550682596,3.15242035,67720.0,67719.0,1.28237192]
[1729550683238,3.15242035,67720.0,67719.0,1.26837192]
[1729550683452,3.15242035,67720.0,67719.0,1.28937192]
[1729550683888,3.15242035,67720.0,67719.0,1.27537192]
[1729550684102,3.15242035,67720.0,67719.0,1.28237192]
[1729550684980,3.09366035,67720.0,67719.0,1.28237192]
[1729550685188,3.09366035,67720.0,67719.0,0.58237192]
[1729550685849,3.09366035,67720.0,67719.0,0.57537192]
[1729550686067,3.09366035,67720.0,67719.0,0.57637192]
[1729550686851,3.09366035,67720.0,67719.0,0.56837192]
[1729550687055,3.09366035,67720.0,67719.0,0.57837192]
[1729550687277,3.09366035,67720.0,67719.0,0.57937192]
[1729550687497,3.09366035,67720.0,67719.0,0.56937192]
[1729550687945,3.07739934,67720.0,67719.0,0.57037192]
[1729550688182,3.07739934,67720.0,67719.0,1.27037192]
[1729550688390,3.07739934,67720.0,67719.0,1.26937192]
[1729550688597,3.07739934,67720.0,67719.0,1.27037192]
[1729550688809,3.07739934,67720.0,67719.0,1.26937192]
[1729550689235,3.07739934,67720.0,67719.0,1.27037192]
[1729550689435,3.07739934,67720.0,67719.0,1.26937192]
[1729550689843,3.07739934,67720.0,67719.0,1.26837192]
[1729550690274,3.07739934,67720.0,67719.0,1.33355018]
[1729550691317,3.07739934,67720.0,67719.0,1.33255018]
[1729550691747,3.07739934,67720.0,67719.0,1.33355018]
[1729550691963,3.07739934,67720.0,67719.0,1.33255018]
[1729550692727,3.07739934,67720.0,67719.0,1.33355018]
[1729550693753,3.07739934,67720.0,67719.0,1.21809997]
[1729550695478,3.03748597,67720.0,67719.0,1.21809997]
[1729550697655,3.03748597,67720.0,67719.0,0.51809997]
[1729550699658,3.03748597,67720.0,67719.0,1.21809997]
[1729550702292,3.03748597,67720.0,67719.0,1.21892697]
[1729550702702,3.03748597,67720.0,67719.0,0.51892697]
[1729550705853,3.03748597,67720.0,67719.0,1.21892697]
[1729550708229,3.03748597,67720.0,67719.0,0.51892697]
[1729550711059,3.03748597,67720.0,67719.0,1.21892697]
[1729550716422,3.02122497,67720.0,67719.0,1.21892697]
[1729550718158,3.02122497,67720.0,67719.0,1.30726292]
[1729550719754,3.02122497,67720.0,67719.0,1.21892697]
[1729550721379,2.95025878,67720.0,67719.0,1.10347676]
[1729550722549,2.29579735,67720.0,67719.0,1.10347676]
[1729550722779,1.24022961,67720.0,67719.0,1.33261246]
[1729550723000,1.21066896,67720.0,67719.0,1.33261246]
[1729550723224,1.21066896,67720.0,67719.0,1.46511638]
[1729550723454,1.20323726,67720.0,67719.0,1.33261246]
[1729550723683,1.15689954,67720.0,67719.0,1.33161246]
[1729550723896,1.00976754,67720.0,67719.0,1.46511638]
[1729550724152,0.7926998,67720.0,67719.0,1.33161246]
[1729550724349,0.7926998,67720.0,67719.0,1.23917676]
[1729550724839,0.6745678,67720.0,67719.0,1.23817676]
[1729550725117,0.6450348,67720.0,67719.0,1.23817676]
[1729550725350,8.12e-05,67730.0,67719.0,1.11350776]
[1729550725579,8.12e-05,67730.0,67729.0,0.83144047]
[1729550725810,8.12e-05,67730.0,67729.0,1.61114047]
[1729550726047,8.12e-05,67730.0,67729.0,1.6148464]
[1729550726299,8.12e-05,67730.0,67729.0,1.52636271]
[1729550726520,0.002242,67735.0,67734.0,0.247636]
[1729550726750,0.002242,67735.0,67734.0,1.18505184]
[1729550726979,0.002242,67735.0,67734.0,1.33114664]
[1729550727677,1e-06,67736.0,67735.0,0.247634]
[1729550727895,1e-06,67736.0,67735.0,1.28270257]
[1729550728138,1e-06,67736.0,67735.0,1.28634719]
[1729550728593,4e-05,67750.0,67735.0,1.28634719]
[1729550728594,4e-05,67750.0,67742.0,0.47851842]
[1729550728818,4e-05,67750.0,67742.0,0.62747757]
[1729550729047,4e-05,67750.0,67742.0,1.32747757]
[1729550729419,4e-05,67750.0,67742.0,1.33111245]
[1729550730001,4e-05,67750.0,67742.0,1.21566224]
[1729550730611,4e-05,67750.0,67742.0,1.21666224]
[1729550730846,4e-05,67750.0,67742.0,1.21766224]
[1729550731295,4e-05,67750.0,67742.0,1.21608508]
[1729550731805,4e-05,67750.0,67742.0,1.21708508]
[1729550732994,0.174054,67743.0,67742.0,1.10163487]
[1729550733444,0.174054,67743.0,67742.0,1.21708508]
[1729550733696,0.096654,67743.0,67742.0,1.22529515]
[1729550735535,0.001654,67743.0,67742.0,1.22529515]
[1729550737316,4e-05,67750.0,67746.0,0.47851042]
[1729550737559,4e-05,67750.0,67746.0,1.32746957]
[1729550737799,4e-05,67750.0,67746.0,1.33107274]
[1729550738021,4e-05,67750.0,67749.0,0.147603]
[1729550738234,0.001672,67753.0,67749.0,0.147603]
[1729550738235,0.03900804,67757.0,67756.0,0.147588]
[1729550738459,0.0756,67759.0,67758.0,0.247584]
[1729550738689,0.0756,67759.0,67758.0,0.39654315]
[1729550738916,0.0756,67759.0,67758.0,0.40013588]
[1729550739602,0.0756,67759.0,67758.0,1.10013588]
[1729550740262,0.0756,67759.0,67758.0,1.10113588]
[1729550740702,0.0756,67759.0,67758.0,1.10013588]
[1729550741153,0.0756,67759.0,67758.0,1.10113588]
[1729550741377,0.1737,67759.0,67758.0,1.10013588]
[1729550741812,0.1737,67759.0,67758.0,1.10113588]
[1729550742019,0.1737,67759.0,67758.0,1.10949147]
[1729550742476,0.1737,67759.0,67758.0,0.40949147]
[1729550742704,0.1737,67759.0,67758.0,0.41049147]
[1729550743159,0.1737,67759.0,67758.0,0.40949147]
[1729550743364,0.1737,67759.0,67758.0,0.42249147]
[1729550743547,0.1737,67759.0,67758.0,0.43649147]
[1729550744273,0.1737,67759.0,67758.0,0.42249147]
[1729550745117,0.1737,67759.0,67758.0,0.43649147]
[1729550745732,0.1737,67759.0,67758.0,0.28055188]
[1729550745938,0.1737,67759.0,67758.0,0.18055188]
[1729550746154,0.1737,67759.0,67758.0,0.32813588]
[1729550751000,0.175352,67759.0,67758.0,0.32813588]
[1729550763615,0.175352,67759.0,67758.0,0.31413588]
[1729550764058,0.001652,67759.0,67758.0,0.58159049]
[1729550765406,0.001652,67759.0,67758.0,0.56759049]
[1729550765841,0.001652,67759.0,67758.0,1.28159049]
[1729550766066,0.001652,67759.0,67758.0,1.26759049]
[1729550766291,0.001652,67759.0,67758.0,1.28159049]
[1729550766510,0.001652,67759.0,67758.0,1.23048095]
[1729550766736,0.001652,67759.0,67758.0,1.21648095]
[1729550766959,0.001652,67759.0,67758.0,1.21748095]
[1729550767444,0.001652,67759.0,67758.0,1.46077681]
[1729550767445,3.3e-07,67759.0,67758.0,1.46077681]
[1729550767677,0.001654,67768.0,67767.0,0.247564]
[1729550767853,0.001654,67768.0,67767.0,1.40641329]
[1729550768094,0.001654,67768.0,67767.0,1.29462121]
[1729550768345,1e-06,67768.0,67767.0,1.40996628]
[1729550768589,1e-06,67772.0,67771.0,0.247555]
[1729550768795,1e-06,67772.0,67771.0,0.39651415]
[1729550769012,1e-06,67772.0,67771.0,0.40006393]
[1729550769232,1e-06,67772.0,67771.0,0.63075407]
[1729550769449,1e-06,67772.0,67771.0,0.76315392]
[1729550769658,1e-06,67772.0,67771.0,0.63075407]
[1729550770353,1e-06,67772.0,67771.0,0.56734504]
[1729550770588,1e-06,67772.0,67771.0,1.26734504]
[1729550771014,1.2547,67786.0,67779.0,0.41481911]
[1729550771237,1.2547,67787.0,67779.0,0.56377826]
[1729550771449,1.2547,67787.0,67779.0,0.56718811]
[1729550771662,1.2547,67786.0,67779.0,1.26718811]
[1729550772340,1.2547,67786.0,67779.0,1.26818811]
[1729550772763,1.2547,67786.0,67779.0,0.56818811]
[1729550773003,1.2547,67785.0,67779.0,0.56818811]
[1729550773218,1.2547,67785.0,67779.0,0.56918811]
[1729550774342,0.099,67791.0,67779.0,0.56918811]
[1729550774343,1.2547,67787.0,67779.0,0.56918811]
[1729550775194,1.2547,67787.0,67779.0,0.57762221]
[1729550776062,1.2547,67786.0,67779.0,0.57762221]
[1729550776350,1.2547,67787.0,67779.0,0.57762221]
[1729550776635,1.2547,67787.0,67779.0,1.27762221]
[1729550776834,1.2547,67786.0,67779.0,1.1103411]
[1729550777519,0.099,67791.0,67779.0,1.1103411]
[1729550777520,1.2547,67785.0,67779.0,1.1103411]
[1729550777954,1.2547,67787.0,67779.0,1.1693991]
[1729550779477,1.2547,67787.0,67779.0,0.4693991]
[1729550779699,0.0793,67781.0,67779.0,0.4693991]
[1729550779918,0.09824,67780.0,67779.0,0.4103411]
[1729550780582,0.09824,67780.0,67779.0,0.400907]
[1729550781249,0.09824,67780.0,67779.0,0.399907]
[1729550781484,0.09924,67780.0,67779.0,0.413907]
[1729550782610,0.09924,67780.0,67779.0,0.399907]
[1729550782824,0.10024,67780.0,67779.0,0.413907]
[1729550783477,0.10124,67780.0,67779.0,0.422907]
[1729550783698,0.18064,67780.0,67779.0,0.175369]
[1729550783930,0.34792111,67780.0,67779.0,0.02640985]
[1729550784140,0.51520222,67780.0,67779.0,0.02640985]
[1729550784351,0.34792111,67780.0,67779.0,0.02640985]
[1729550784563,0.34792111,67780.0,67779.0,0.17394785]
[1729550785005,0.34692111,67780.0,67779.0,0.15994785]
[1729550785234,0.34592111,67780.0,67779.0,0.16494785]
[1729550785458,0.34757311,67780.0,67779.0,0.17894785]
[1729550785665,0.181292,67780.0,67779.0,0.327907]
[1729550792803,0.34857311,67780.0,67779.0,0.03140985]
[1729550793011,0.54385422,67780.0,67779.0,0.03140985]
[1729550793228,0.37657311,67780.0,67779.0,0.03140985]
[1729550793437,0.37657311,67780.0,67779.0,0.028]
[1729550793645,0.37157311,67780.0,67779.0,0.028]
[1729550794104,0.37057311,67780.0,67779.0,0.01734341]
[1729550794310,0.34757311,67780.0,67779.0,0.01034341]
[1729550794530,0.34857311,67780.0,67779.0,0.01734341]
[1729550794737,0.34857311,67780.0,67779.0,0.01034341]
[1729550794923,0.34757311,67780.0,67779.0,0.00334341]
[1729550795133,0.34957311,67780.0,67779.0,0.01934341]
[1729550795375,0.34857311,67780.0,67779.0,0.15888141]
[1729550795582,0.34857311,67780.0,67779.0,0.15088141]
[1729550795793,0.34857311,67780.0,67779.0,0.16188141]
[1729550795794,0.181292,67780.0,67779.0,0.16188141]
[1729550795995,0.34957311,67780.0,67779.0,0.17288141]
[1729550797036,0.182292,67780.0,67779.0,0.32184056]
[1729550797251,0.180292,67780.0,67779.0,0.31084056]
[1729550797455,0.179292,67780.0,67779.0,0.30784056]
[1729550797693,0.181292,67780.0,67779.0,0.31584056]
[1729550797897,0.181292,67780.0,67779.0,0.30784056]
[1729550798103,0.181292,67780.0,67779.0,0.31084056]
[1729550798562,0.182292,67780.0,67779.0,0.32184056]
[1729550799005,0.179292,67780.0,67779.0,0.29984056]
[1729550799257,0.179292,67780.0,67779.0,0.31384056]
[1729550799471,0.181292,67780.0,67779.0,0.32784056]
[1729550799926,0.003692,67780.0,67779.0,0.32784056]
[1729550801082,0.006,67789.0,67779.0,0.32784056]
[1729550801083,4e-05,67800.0,67799.0,0.152494]
[1729550801318,4e-05,67800.0,67799.0,0.40145315]
[1729550801553,1.256372,67811.0,67810.0,0.14747]
[1729550801832,1.256372,67811.0,67810.0,0.29642915]
[1729550802055,1.256372,67811.0,67810.0,0.39975501]
[1729550803827,1.256372,67811.0,67810.0,0.41375501]
[1729550804055,1.256372,67811.0,67810.0,0.39975501]
[1729550804501,0.001672,67811.0,67810.0,0.41375501]
[1729550805086,0.001672,67811.0,67810.0,0.39975501]
[1729550805322,0.16895311,67811.0,67810.0,0.15228501]
[1729550805505,0.16895311,67811.0,67810.0,0.18028501]
[1729550805712,0.16895311,67811.0,67810.0,0.32775501]
[1729550805912,0.16895311,67811.0,67810.0,0.18028501]
[1729550806121,0.16895311,67811.0,67810.0,0.16628501]
[1729550806322,0.16895311,67811.0,67810.0,0.31375501]
[1729550806610,0.16895311,67811.0,67810.0,0.18028501]
[1729550806866,0.16895311,67811.0,67810.0,0.16628501]
[1729550807080,0.16895311,67811.0,67810.0,0.18028501]
[1729550807956,0.16895311,67811.0,67810.0,0.16628501]
[1729550808232,0.16895311,67811.0,67810.0,0.32775501]
[1729550808454,1.42365311,67811.0,67810.0,0.03132586]
[1729550808887,1.42365311,67811.0,67810.0,0.028]
[1729550809095,1.42365311,67811.0,67810.0,0.0312068]
[1729550809965,1.256372,67811.0,67810.0,0.18016595]
[1729550810394,1.256372,67811.0,67810.0,0.32763595]
[1729550811044,1.42365311,67811.0,67810.0,0.32763595]
[1729550811479,1.256372,67811.0,67810.0,0.32763595]
[1729550813415,0.001672,67811.0,67810.0,0.32763595]
[1729550814610,0.20536456,67828.0,67826.0,0.147436]
[1729550814843,0.20536456,67837.0,67826.0,0.56867626]
[1729550815040,0.20536456,67837.0,67826.0,0.40139515]
[1729550815258,0.16728111,67835.0,67826.0,0.39960195]
[1729550815452,0.16728111,67835.0,67826.0,0.40460195]
[1729550815667,0.20536456,67837.0,67826.0,0.62584578]
[1729550815889,0.20536456,67837.0,67826.0,0.40460195]
[1729550816110,0.20536456,67836.0,67826.0,0.39960195]
[1729550816358,0.20536456,67836.0,67826.0,0.40460195]
[1729550817040,0.20536456,67836.0,67826.0,0.41860195]
[1729550817873,0.20536456,67836.0,67826.0,0.43260195]
[1729550818087,0.20536456,67835.0,67826.0,0.43260195]
[1729550818817,0.20536456,67835.0,67826.0,0.65384578]
[1729550819032,0.20536456,67835.0,67826.0,0.43260195]
[1729550822294,0.16728111,67839.0,67826.0,0.43260195]
[1729550825154,0.16728111,67839.0,67826.0,0.49162495]
[1729550827171,0.26058111,67831.0,67826.0,0.42760195]
[1729550830951,0.0933,67831.0,67826.0,0.42760195]
[1729550833193,0.0933,67831.0,67826.0,0.43260195]
[1729550833909,0.0772,67833.0,67826.0,0.65384578]
[1729550834137,0.0772,67833.0,67826.0,0.43260195]
[1729550835473,0.0772,67833.0,67826.0,0.65384578]
[1729550835692,0.16728111,67839.0,67826.0,0.82112689]
[1729550835693,0.0828,67839.0,67826.0,0.82112689]
[1729550835914,0.0828,67839.0,67826.0,0.59988306]
[1729550836138,0.00167,67840.0,67826.0,0.59988306]
[1729550836854,0.00167,67840.0,67826.0,0.57188306]
[1729550837065,0.00167,67840.0,67826.0,0.58588306]
[1729550837309,0.00167,67840.0,67826.0,1.29988306]
[1729550838019,0.00167,67840.0,67826.0,1.30797698]
[1729550838856,0.00167,67840.0,67826.0,1.29397698]
[1729550839277,0.00167,67840.0,67826.0,1.30197698]
[1729550839523,0.00167,67840.0,67826.0,1.29397698]
[1729550840224,0.00167,67840.0,67826.0,1.30097698]
[1729550840666,0.00167,67840.0,67826.0,1.12669587]
[1729550840891,0.00167,67840.0,67826.0,1.14069587]
[1729550841115,0.00148377,67827.0,67826.0,1.14069587]
[1729550842466,0.07798377,67827.0,67826.0,1.12760195]
[1729550842701,0.07798377,67827.0,67826.0,0.42760195]
[1729550842946,0.07798377,67827.0,67826.0,0.64884578]
[1729550843175,0.07798377,67827.0,67826.0,0.43260195]
[1729550843399,0.07798377,67827.0,67826.0,0.41860195]
[1729550843632,0.07798377,67827.0,67826.0,0.43260195]
[1729550844114,0.07798377,67827.0,67826.0,0.41860195]
[1729550844568,0.07798377,67827.0,67826.0,0.43260195]
[1729550845045,0.07798377,67827.0,67826.0,0.41860195]
[1729550845275,0.07798377,67827.0,67826.0,0.42760195]
[1729550845510,0.07798377,67827.0,67826.0,0.41360195]
[1729550845732,0.07798377,67827.0,67826.0,0.42760195]
[1729550846178,0.07798377,67827.0,67826.0,0.41860195]
[1729550846455,0.07798377,67827.0,67826.0,0.43260195]
[1729550846685,0.07798377,67827.0,67826.0,0.42760195]
[1729550846924,0.07798377,67827.0,67826.0,0.41360195]
[1729550847145,0.07798377,67827.0,67826.0,0.42760195]
[1729550847596,0.24526488,67827.0,67826.0,0.32760195]
[1729550849135,0.07798377,67827.0,67826.0,0.32760195]
[1729550851432,0.07802377,67827.0,67826.0,0.32760195]
[1729550853967,0.00152377,67827.0,67826.0,0.32760195]
[1729550854448,0.00152377,67827.0,67826.0,0.86996317]
[1729550854691,0.00152377,67827.0,67826.0,0.64871934]
[1729550855417,0.00152377,67827.0,67826.0,0.63471934]
[1729550855635,0.00152377,67827.0,67826.0,0.57188306]
[1729550855856,0.00152377,67827.0,67826.0,0.58125959]
[1729550856072,0.00252377,67827.0,67826.0,0.58225959]
[1729550856304,0.00252377,67827.0,67826.0,0.58025959]
[1729550856521,0.00252377,67827.0,67826.0,0.58125959]
[1729550856762,0.00352377,67827.0,67826.0,1.28225959]
[1729550860094,0.00352377,67827.0,67826.0,1.28425959]
[1729550861496,0.00352377,67827.0,67826.0,0.41497848]
[1729550866428,0.00352377,67827.0,67826.0,0.41580548]
[1729550867282,0.00352377,67827.0,67826.0,0.71344931]
[1729550867508,0.00352377,67827.0,67826.0,0.49220548]
[1729550868353,0.00352377,67827.0,67826.0,1.19220548]
[1729550868585,7.7e-07,67827.0,67826.0,1.41344931]
[1729550868814,7.7e-07,67827.0,67826.0,0.49420548]
[1729550869458,0.16728111,67859.0,67826.0,0.49420548]
[1729550869459,0.16728111,67858.0,67855.0,0.147372]
[1729550869674,0.22124383,67856.0,67853.0,0.294752]
[1729550869905,0.16728111,67858.0,67856.0,0.00307168]
[1729550870102,0.16728111,67858.0,67854.0,0.147374]
[1729550870308,0.16728111,67858.0,67857.0,0.00307168]
[1729550870525,0.16728111,67858.0,67852.0,0.147378]
[1729550870724,0.16728111,67858.0,67857.0,0.00307168]
[1729550870935,0.16728111,67858.0,67857.0,0.14895915]
[1729550871145,0.16728111,67858.0,67857.0,0.15203083]
[1729550871793,0.16728111,67862.0,67857.0,0.16203083]
[1729550872024,0.16728111,67859.0,67857.0,0.16203083]
[1729550872482,0.1804,67858.0,67857.0,0.17103083]
[1729550872928,0.1804,67858.0,67857.0,0.16203083]
[1729550873783,0.1804,67858.0,67857.0,0.15203083]
[1729550873965,0.1804,67858.0,67857.0,0.16103083]
[1729550874226,0.1804,67858.0,67857.0,0.15203083]
[1729550874410,0.1804,67858.0,67857.0,0.16003083]
[1729550874642,0.1804,67858.0,67857.0,0.17003083]
[1729550874818,0.1804,67858.0,67857.0,0.16203083]
[1729550875229,0.1804,67858.0,67857.0,0.17103083]
[1729550876374,0.1804,67858.0,67857.0,0.16795915]
[1729550876597,0.1804,67858.0,67857.0,0.17101474]
[1729550877888,0.182054,67858.0,67857.0,0.17101474]
[1729550882065,0.32942,67858.0,67857.0,0.17101474]
[1729550882495,0.32942,67858.0,67857.0,0.02205559]
[1729550883337,0.17228111,67859.0,67857.0,0.02205559]
[1729550883338,0.005,67859.0,67857.0,0.02205559]
[1729550883545,0.32845324,67858.0,67857.0,0.02205559]
[1729550885446,0.33345324,67858.0,67857.0,0.02205559]
[1729550885882,0.1860881,67858.0,67857.0,0.02205559]
[1729550887711,0.17228111,67858.0,67857.0,0.02205559]
[1729550888570,0.005,67858.0,67857.0,0.02205559]
[1729550888966,0.005,67858.0,67857.0,0.02288159]
[1729550892674,0.17228111,67858.0,67857.0,0.02288159]
[1729550894215,0.17228111,67858.0,67857.0,0.17184074]
[1729550894456,0.18109214,67858.0,67857.0,0.17184074]
[1729550898203,0.18110269,67858.0,67857.0,0.17184074]
[1729550901476,0.16728111,67858.0,67857.0,0.17184074]
[1729550901699,0.18110732,67858.0,67857.0,0.17184074]
[1729550902243,0.12892011,67858.0,67857.0,0.17184074]